fUSD/lending_fUSD_20260413
["ID","MTS","AMOUNT","RATE_DAILY","PERIOD"]
[420428600,1776094950737,-600.0,0.00034067,60]
[420428601,1776094950827,-1078.4713201,0.00034067,60]
[420428602,1776094950922,-250.0,0.00034329,36]
[420428603,1776094951011,-500.0,0.00034575,120]
[420428604,1776094951098,-500.0,0.00034818,30]
[420428605,1776094951183,-2736.0,0.00034819,30]
[420428606,1776094951271,-482.0,0.00034819,30]
[420428607,1776094951359,-300.0,0.00034819,30]
[420428608,1776094951453,-1213.0,0.00034819,30]
[420428609,1776094951545,-377.0,0.00034819,30]
[420428610,1776094951632,-350.0,0.00034819,30]
[420428611,1776094951726,-739.99103695,0.00034849,120]
[420428612,1776094951833,-1369.33,0.000349,30]
[420428613,1776094951943,-809.47603254,0.00035,120]
[420428614,1776094952029,-637.37077364,0.00035,120]
[420428615,1776094952111,-723.56350995,0.00035,120]
[420428616,1776094952199,-1878.63475085,0.00035,120]
[420428617,1776094952315,-1357.09787276,0.00035,120]
[420428618,1776094952414,-1544.99528272,0.00035,120]
[420428619,1776094952542,-1201.55644177,0.00035,120]
[420428620,1776094952859,-745.54387771,0.00035,120]
[420428621,1776094952944,-1181.56,0.000351,90]
[420428622,1776094953033,-500.0,0.00035404,30]
[420428623,1776094953123,-500.0,0.00035534,120]
[420428624,1776094953215,-500.0,0.00035818,30]
[420428625,1776094953322,-2736.0,0.00035819,30]
[420428626,1776094953447,-482.0,0.00035819,30]
[420428627,1776094953535,-300.0,0.00035819,30]
[420428628,1776094953622,-1213.0,0.00035819,30]
[420428629,1776094953710,-377.0,0.00035819,30]
[420428630,1776094953797,-350.0,0.00035819,30]
[420428631,1776094953905,-809.47603254,0.00036,120]
[420428632,1776094953989,-637.37077364,0.00036,120]
[420428633,1776094954082,-723.56350995,0.00036,120]
[420428634,1776094954206,-1878.63475085,0.00036,120]
[420428635,1776094954321,-1357.09787276,0.00036,120]
[420428636,1776094954459,-1544.99528272,0.00036,120]
[420428637,1776094954773,-1201.55644177,0.00036,120]
[420428638,1776094954892,-745.54387771,0.00036,120]
[420428639,1776094954983,-500.0,0.00036219,120]
[420428640,1776094955095,-202.22,0.00036315,90]
[420428641,1776094955207,-1206.90043,0.000364,120]
[420428642,1776094955302,-500.0,0.00036467,35]
[420428643,1776094955396,-500.0,0.00036818,30]
[420428644,1776094955477,-2736.0,0.00036819,30]
[420428645,1776094955564,-482.0,0.00036819,30]
[420428646,1776094955642,-300.0,0.00036819,30]
[420428647,1776094955721,-1213.0,0.00036819,30]
[420428648,1776094955797,-377.0,0.00036819,30]
[420428649,1776094955876,-350.0,0.00036819,30]
[420428650,1776094955960,-438.24,0.00037,30]
[420428651,1776094956043,-174.0,0.00037,30]
[420428652,1776094956150,-500.0,0.00037041,120]
[420428653,1776094956293,-1206.90043,0.000373,120]
[420428654,1776094956396,-4624.634,0.00037423,48]
[420428655,1776094956487,-197.626,0.00037423,48]
[420428656,1776094956581,-500.0,0.00037561,41]
[420428657,1776094956657,-500.0,0.00037818,30]
[420428658,1776094956736,-2736.0,0.00037819,30]
[420428659,1776094956813,-482.0,0.00037819,30]
[420428660,1776094956888,-300.0,0.00037819,30]
[420428661,1776094956964,-1213.0,0.00037819,30]
[420428662,1776094957049,-377.0,0.00037819,30]
[420428663,1776094957138,-350.0,0.00037819,30]
[420428664,1776094957224,-500.0,0.00037863,120]
[420428665,1776094957313,-460.67,0.00038034,30]
[420428666,1776094957400,-346.73,0.00038034,30]
[420428667,1776094957483,-1206.90043,0.000382,120]
[420428668,1776094957567,-414.47534853,0.00038356,120]
[420428669,1776094957661,-202.22,0.00038646,90]
[420428670,1776094957769,-500.0,0.00038685,120]
[420428671,1776094957869,-500.0,0.00038687,47]
[420428672,1776094957962,-500.0,0.00038818,30]
[420428673,1776094958063,-2736.0,0.00038819,30]
[420428674,1776094958165,-482.0,0.00038819,30]
[420428675,1776094958303,-300.0,0.00038819,30]
[420428676,1776094958443,-1213.0,0.00038819,30]
[420428677,1776094958534,-377.0,0.00038819,30]
[420428678,1776094958631,-350.0,0.00038819,30]
[420428679,1776094958726,-900.0,0.00039,120]
[420428680,1776094958804,-900.0,0.00039,120]
[420428681,1776094958884,-900.0,0.00039,120]
[420428682,1776094958961,-160.63,0.000391,35]
[420428683,1776094959039,-160.63,0.000391,41]
[420428684,1776094959116,-160.63,0.000391,46]
[420428685,1776094959192,-160.63,0.000391,51]
[420428686,1776094959266,-160.63,0.000391,56]
[420428687,1776094959341,-160.63,0.000391,62]
[420428688,1776094959418,-160.63,0.000391,67]
[420428689,1776094959511,-160.63,0.000391,72]
[420428690,1776094959603,-1206.90043,0.000391,120]
[420428691,1776094959700,-1100.0,0.00039255,30]
[420428692,1776094959790,-500.0,0.00039507,120]
[420428693,1776094959878,-500.0,0.00039577,120]
[420428694,1776094959983,-170.0,0.00039726,120]
[420428695,1776094960104,-153.0,0.00039726,120]
[420428696,1776094960257,-160.0,0.00039726,120]
[420428697,1776094960430,-500.0,0.00039848,53]
[420428698,1776094960542,-1206.90045,0.0004,120]
[420428699,1776094960625,-1048.0,0.0004,30]
[420428700,1776094960708,-1860.53572283,0.00040274,50]
[420428701,1776094960794,-500.0,0.00040329,120]
[420428702,1776094960879,-4251.39801012,0.00040359,120]
[420428703,1776094961003,-2936.74212342,0.00040359,120]
[420428704,1776094961253,-250.0,0.00040492,77]
[420428705,1776094961339,-2000.0,0.000406,120]
[420428706,1776094961419,-2000.0,0.000406,120]
[420428707,1776094961501,-553.54297198,0.00040743,120]
[420428708,1776094961644,-202.22,0.00040977,90]
[420428709,1776094961729,-1048.0,0.00041,30]
[420428710,1776094961830,-500.0,0.00041043,60]
[420428711,1776094961946,-151.0,0.00041096,120]
[420428712,1776094962067,-151.0,0.00041096,120]
[420428713,1776094962179,-181.713183,0.00041096,120]
[420428714,1776094962270,-151.0,0.00041096,120]
[420428715,1776094962362,-151.0,0.00041096,120]
[420428716,1776094962449,-151.0,0.00041096,120]
[420428717,1776094962535,-527.640782,0.00041096,120]
[420428718,1776094962615,-163.382271,0.00041096,120]
[420428719,1776094962690,-527.640782,0.00041096,120]
[420428720,1776094962779,-527.640782,0.00041096,120]
[420428721,1776094962853,-527.640782,0.00041096,120]
[420428722,1776094962929,-355.72206,0.00041096,120]
[420428723,1776094963008,-355.72206,0.00041096,120]
[420428724,1776094963092,-355.72206,0.00041096,120]
[420428725,1776094963204,-355.72206,0.00041096,120]
[420428726,1776094963289,-151.0,0.00041096,120]
[420428727,1776094963374,-289.552638,0.00041096,120]
[420428728,1776094963450,-151.0,0.00041096,120]
[420428729,1776094963525,-289.552638,0.00041096,120]
[420428730,1776094963624,-289.552638,0.00041096,120]
[420428731,1776094963728,-289.552638,0.00041096,120]
[420428732,1776094963811,-151.0,0.00041096,120]
[420428733,1776094963889,-1598.28675,0.00041096,120]
[420428734,1776094963971,-151.0,0.00041096,120]
[420428735,1776094964063,-166.711318,0.00041096,120]
[420428736,1776094964159,-1598.28675,0.00041096,120]
[420428737,1776094964236,-151.0,0.00041096,120]
[420428738,1776094964322,-166.711318,0.00041096,120]
[420428739,1776094964410,-1598.28675,0.00041096,120]
[420428740,1776094964496,-536.445979,0.00041096,120]
[420428741,1776094964602,-151.0,0.00041096,120]
[420428742,1776094964691,-151.0,0.00041096,120]
[420428743,1776094964786,-166.711318,0.00041096,120]
[420428744,1776094964889,-151.0,0.00041096,120]
[420428745,1776094964994,-1598.28675,0.00041096,120]
[420428746,1776094965090,-536.445979,0.00041096,120]
[420428747,1776094965174,-151.0,0.00041096,120]
[420428748,1776094965262,-294.786212,0.00041096,120]
[420428749,1776094965359,-151.0,0.00041096,120]
[420428750,1776094965853,-166.711318,0.00041096,120]
[420428751,1776094965978,-536.445979,0.00041096,120]
[420428752,1776094966087,-151.0,0.00041096,120]
[420428753,1776094966186,-151.0,0.00041096,120]
[420428754,1776094966274,-536.445979,0.00041096,120]
[420428755,1776094966365,-151.0,0.00041096,120]
[420428756,1776094966448,-151.0,0.00041096,120]
[420428757,1776094966525,-151.0,0.00041096,35]
[420428758,1776094966614,-1060.212949,0.00041096,120]
[420428759,1776094966695,-3103.458653,0.00041096,120]
[420428760,1776094966772,-151.0,0.00041096,120]
[420428761,1776094966849,-1060.212949,0.00041096,120]
[420428762,1776094966930,-3103.458653,0.00041096,120]
[420428763,1776094967011,-151.0,0.00041096,120]
[420428764,1776094967099,-1060.212949,0.00041096,120]
[420428765,1776094967202,-3103.458653,0.00041096,120]
[420428766,1776094967297,-1060.212949,0.00041096,120]
[420428767,1776094967388,-3103.458653,0.00041096,120]
[420428768,1776094967472,-151.0,0.00041096,120]
[420428769,1776094967557,-151.0,0.00041096,120]
[420428770,1776094967654,-877.611268,0.00041096,120]
[420428771,1776094967753,-877.611268,0.00041096,120]
[420428772,1776094967847,-877.611268,0.00041096,120]
[420428773,1776094967926,-1059.308692,0.00041096,120]
[420428774,1776094968008,-877.611268,0.00041096,120]
[420428775,1776094968087,-1059.308692,0.00041096,120]
[420428776,1776094968168,-1059.308692,0.00041096,120]
[420428777,1776094968250,-1059.308692,0.00041096,120]
[420428778,1776094968338,-151.0,0.00041096,120]
[420428779,1776094968420,-282.188983,0.00041096,120]
[420428780,1776094968502,-190.043365,0.00041096,120]
[420428781,1776094968589,-282.188983,0.00041096,120]
[420428782,1776094968674,-151.0,0.00041096,120]
[420428783,1776094968758,-190.043365,0.00041096,120]
[420428784,1776094968850,-282.188983,0.00041096,120]
[420428785,1776094968948,-190.043365,0.00041096,120]
[420428786,1776094969095,-217.29,0.00041096,120]
[420428787,1776094969308,-282.188983,0.00041096,120]
[420428788,1776094969435,-190.043365,0.00041096,120]
[420428789,1776094969518,-217.29,0.00041096,120]
[420428790,1776094969603,-382.570439,0.00041096,120]
[420428791,1776094969688,-217.29,0.00041096,120]
[420428792,1776094969778,-382.570439,0.00041096,120]
[420428793,1776094969894,-299.989875,0.00041096,120]
[420428794,1776094970006,-217.29,0.00041096,120]
[420428795,1776094970107,-299.989875,0.00041096,120]
[420428796,1776094970200,-382.570439,0.00041096,120]
[420428797,1776094970298,-299.989875,0.00041096,120]
[420428798,1776094970386,-382.570439,0.00041096,120]
[420428799,1776094970475,-151.0,0.00041096,120]
[420428800,1776094970562,-299.989875,0.00041096,120]
[420428801,1776094970644,-260.477205,0.00041096,120]
[420428802,1776094970729,-318.976862,0.00041096,120]
[420428803,1776094970818,-318.976862,0.00041096,120]
[420428804,1776094970911,-318.976862,0.00041096,120]
[420428805,1776094970997,-318.976862,0.00041096,120]
[420428806,1776094971088,-151.0,0.00041096,120]
[420428807,1776094971182,-529.175339,0.00041096,120]
[420428808,1776094971289,-151.0,0.00041096,120]
[420428809,1776094971379,-529.175339,0.00041096,120]
[420428810,1776094971472,-529.175339,0.00041096,120]
[420428811,1776094971571,-529.175339,0.00041096,120]
[420428812,1776094971648,-658.423098,0.00041096,120]
[420428813,1776094971725,-151.0,0.00041096,120]
[420428814,1776094971805,-1342.539611,0.00041096,120]
[420428815,1776094971889,-658.423098,0.00041096,120]
[420428816,1776094971967,-1342.539611,0.00041096,120]
[420428817,1776094972050,-151.0,0.00041096,120]
[420428818,1776094972137,-658.423098,0.00041096,120]
[420428819,1776094972234,-151.0,0.00041096,120]
[420428820,1776094972321,-603.377609,0.00041096,120]
[420428821,1776094972406,-1342.539611,0.00041096,120]
[420428822,1776094972491,-658.423098,0.00041096,120]
[420428823,1776094972575,-151.0,0.00041096,120]
[420428824,1776094972661,-173.78664,0.00041096,120]
[420428825,1776094972763,-235.222402,0.00041096,120]
[420428826,1776094972862,-603.377609,0.00041096,120]
[420428827,1776094972963,-1342.539611,0.00041096,120]
[420428828,1776094973064,-151.0,0.00041096,120]
[420428829,1776094973179,-173.78664,0.00041096,120]
[420428830,1776094973325,-603.377609,0.00041096,120]
[420428831,1776094973509,-151.0,0.00041096,120]
[420428832,1776094973642,-151.0,0.00041096,120]
[420428833,1776094973738,-173.78664,0.00041096,120]
[420428834,1776094973824,-151.0,0.00041096,120]
[420428835,1776094973902,-603.377609,0.00041096,120]
[420428836,1776094973980,-239.022317,0.00041096,120]
[420428837,1776094974064,-173.78664,0.00041096,120]
[420428838,1776094974147,-151.0,0.00041096,120]
[420428839,1776094974233,-151.0,0.00041096,120]
[420428840,1776094974322,-239.022317,0.00041096,120]
[420428841,1776094974432,-151.0,0.00041096,120]
[420428842,1776094974542,-151.0,0.00041096,120]
[420428843,1776094974629,-239.022317,0.00041096,120]
[420428844,1776094974719,-151.0,0.00041096,120]
[420428845,1776094974810,-151.0,0.00041096,120]
[420428846,1776094974892,-176.30474,0.00041096,120]
[420428847,1776094974977,-239.022317,0.00041096,120]
[420428848,1776094975077,-151.0,0.00041096,120]
[420428849,1776094975229,-151.0,0.00041096,120]
[420428850,1776094975368,-151.0,0.00041096,120]
[420428851,1776094975460,-274.022715,0.00041096,120]
[420428852,1776094975562,-176.30474,0.00041096,120]
[420428853,1776094975649,-176.30474,0.00041096,120]
[420428854,1776094975739,-151.0,0.00041096,120]
[420428855,1776094975832,-151.0,0.00041096,120]
[420428856,1776094975942,-176.30474,0.00041096,120]
[420428857,1776094976026,-151.0,0.00041096,120]
[420428858,1776094976108,-151.0,0.00041096,120]
[420428859,1776094976186,-151.0,0.00041096,120]
[420428860,1776094976269,-151.0,0.00041096,120]
[420428861,1776094976363,-193.667607,0.00041096,120]
[420428862,1776094976455,-193.667607,0.00041096,120]
[420428863,1776094976575,-1299.883035,0.00041096,120]
[420428864,1776094976684,-151.0,0.00041096,120]
[420428865,1776094976806,-193.667607,0.00041096,120]
[420428866,1776094976887,-1299.883035,0.00041096,120]
[420428867,1776094976964,-151.0,0.00041096,120]
[420428868,1776094977399,-193.667607,0.00041096,120]
[420428869,1776094977491,-1299.883035,0.00041096,120]
[420428870,1776094977575,-151.0,0.00041096,120]
[420428871,1776094977663,-151.0,0.00041096,120]
[420428872,1776094977747,-340.037769,0.00041096,120]
[420428873,1776094977840,-1747.82986,0.00041096,120]
[420428874,1776094977930,-151.0,0.00041096,120]
[420428875,1776094978018,-1299.883035,0.00041096,120]
[420428876,1776094978097,-151.0,0.00041096,120]
[420428877,1776094978175,-1747.82986,0.00041096,120]
[420428878,1776094978254,-340.037769,0.00041096,120]
[420428879,1776094978335,-340.037769,0.00041096,120]
[420428880,1776094978421,-1747.82986,0.00041096,120]
[420428881,1776094978499,-1747.82986,0.00041096,120]
[420428882,1776094978598,-340.037769,0.00041096,120]
[420428883,1776094978680,-151.0,0.00041096,120]
[420428884,1776094978786,-166.989779,0.00041096,120]
[420428885,1776094978885,-166.989779,0.00041096,120]
[420428886,1776094979087,-166.989779,0.00041096,120]
[420428887,1776094979207,-166.989779,0.00041096,120]
[420428888,1776094979303,-473.062962,0.00041096,120]
[420428889,1776094979385,-151.0,0.00041096,120]
[420428890,1776094979463,-473.062962,0.00041096,120]
[420428891,1776094979542,-473.062962,0.00041096,120]
[420428892,1776094979620,-283.232096,0.00041096,120]
[420428893,1776094979700,-473.062962,0.00041096,120]
[420428894,1776094979782,-151.0,0.00041096,120]
[420428895,1776094979867,-369.475509,0.00041096,120]
[420428896,1776094979948,-369.475509,0.00041096,120]
[420428897,1776094980038,-369.475509,0.00041096,120]
[420428898,1776094980124,-369.475509,0.00041096,120]
[420428899,1776094980220,-151.0,0.00041096,120]
[420428900,1776094980330,-151.0,0.00041096,120]
[420428901,1776094980466,-256.999623,0.00041096,120]
[420428902,1776094980551,-151.0,0.00041096,120]
[420428903,1776094980639,-151.0,0.00041096,120]
[420428904,1776094980731,-673.961631,0.00041096,120]
[420428905,1776094980820,-151.0,0.00041096,120]
[420428906,1776094980902,-673.961631,0.00041096,120]
[420428907,1776094980988,-673.961631,0.00041096,120]
[420428908,1776094981078,-178.975509,0.00041096,120]
[420428909,1776094981162,-151.0,0.00041096,120]
[420428910,1776094981292,-178.975509,0.00041096,120]
[420428911,1776094981370,-673.961631,0.00041096,120]
[420428912,1776094981471,-151.0,0.00041096,120]
[420428913,1776094981568,-151.0,0.00041096,120]
[420428914,1776094981658,-171.818706,0.00041096,120]
[420428915,1776094981756,-178.975509,0.00041096,120]
[420428916,1776094981845,-151.0,0.00041096,120]
[420428917,1776094981927,-151.0,0.00041096,120]
[420428918,1776094982003,-171.818706,0.00041096,120]
[420428919,1776094982089,-420.734528,0.00041096,120]
[420428920,1776094982180,-178.975509,0.00041096,120]
[420428921,1776094982276,-681.239709,0.00041096,120]
[420428922,1776094982362,-151.0,0.00041096,120]
[420428923,1776094982447,-171.818706,0.00041096,120]
[420428924,1776094982531,-449.367358,0.00041096,120]
[420428925,1776094982614,-420.734528,0.00041096,120]
[420428926,1776094982697,-681.239709,0.00041096,120]
[420428927,1776094982783,-151.0,0.00041096,120]
[420428928,1776094982871,-171.818706,0.00041096,120]
[420428929,1776094982959,-449.367358,0.00041096,120]
[420428930,1776094983070,-420.734528,0.00041096,120]
[420428931,1776094983174,-228.354176,0.00041096,120]
[420428932,1776094983265,-151.0,0.00041096,120]
[420428933,1776094983355,-681.239709,0.00041096,120]
[420428934,1776094983435,-212.712339,0.00041096,30]
[420428935,1776094983527,-151.0,0.00041096,120]
[420428936,1776094983624,-449.367358,0.00041096,120]
[420428937,1776094983724,-420.734528,0.00041096,120]
[420428938,1776094983807,-228.354176,0.00041096,120]
[420428939,1776094983887,-681.239709,0.00041096,120]
[420428940,1776094983966,-238.806235,0.00041096,30]
[420428941,1776094984052,-212.712339,0.00041096,30]
[420428942,1776094984140,-755.801625,0.00041096,120]
[420428943,1776094984228,-151.0,0.00041096,120]
[420428944,1776094984321,-449.367358,0.00041096,120]
[420428945,1776094984403,-151.0,0.00041096,120]
[420428946,1776094984495,-228.354176,0.00041096,120]
[420428947,1776094984581,-238.806235,0.00041096,30]
[420428948,1776094984658,-151.0,0.00041096,120]
[420428949,1776094984747,-755.801625,0.00041096,120]
[420428950,1776094984836,-212.712339,0.00041096,30]
[420428951,1776094984921,-151.0,0.00041096,120]
[420428952,1776094985001,-151.0,0.00041096,120]
[420428953,1776094985081,-151.0,0.00041096,120]
[420428954,1776094985165,-228.354176,0.00041096,120]
[420428955,1776094985248,-238.806235,0.00041096,30]
[420428956,1776094985337,-151.0,0.00041096,120]
[420428957,1776094985435,-755.801625,0.00041096,120]
[420428958,1776094985555,-151.0,0.00041096,120]
[420428959,1776094985686,-212.712339,0.00041096,30]
[420428960,1776094985784,-238.806235,0.00041096,30]
[420428961,1776094985872,-193.187813,0.00041096,120]
[420428962,1776094985954,-755.801625,0.00041096,120]
[420428963,1776094986038,-560.656803,0.00041096,120]
[420428964,1776094986125,-151.0,0.00041096,120]
[420428965,1776094986213,-151.0,0.00041096,120]
[420428966,1776094986301,-560.656803,0.00041096,120]
[420428967,1776094986396,-151.0,0.00041096,120]
[420428968,1776094986487,-864.462822,0.00041096,120]
[420428969,1776094986575,-151.0,0.00041096,120]
[420428970,1776094986672,-560.656803,0.00041096,120]
[420428971,1776094986768,-864.462822,0.00041096,120]
[420428972,1776094986888,-560.656803,0.00041096,120]
[420428973,1776094986974,-864.462822,0.00041096,120]
[420428974,1776094987072,-864.462822,0.00041096,120]
[420428975,1776094987164,-692.420755,0.00041096,120]
[420428976,1776094987254,-692.420755,0.00041096,120]
[420428977,1776094987349,-236.11041,0.00041096,120]
[420428978,1776094987440,-151.0,0.00041096,120]
[420428979,1776094987536,-236.11041,0.00041096,120]
[420428980,1776094987636,-692.420755,0.00041096,120]
[420428981,1776094987732,-151.0,0.00041096,120]
[420428982,1776094987818,-236.11041,0.00041096,120]
[420428983,1776094987900,-692.420755,0.00041096,120]
[420428984,1776094987996,-1436.592308,0.00041096,120]
[420428985,1776094988477,-284.997584,0.00041096,120]
[420428986,1776094988560,-236.11041,0.00041096,120]
[420428987,1776094988650,-1436.592308,0.00041096,120]
[420428988,1776094988751,-2683.142456,0.00041096,120]
[420428989,1776094988830,-1436.592308,0.00041096,120]
[420428990,1776094988934,-2683.142456,0.00041096,120]
[420428991,1776094989023,-151.0,0.00041096,120]
[420428992,1776094989109,-1436.592308,0.00041096,120]
[420428993,1776094989194,-2683.142456,0.00041096,120]
[420428994,1776094989286,-388.607107,0.00041096,120]
[420428995,1776094989377,-168.21109,0.00041096,120]
[420428996,1776094989474,-151.0,0.00041096,120]
[420428997,1776094989576,-151.0,0.00041096,120]
[420428998,1776094989678,-388.607107,0.00041096,120]
[420428999,1776094989782,-2683.142456,0.00041096,120]
[420429000,1776094989878,-151.0,0.00041096,120]
[420429001,1776094989958,-151.0,0.00041096,120]
[420429002,1776094990047,-151.0,0.00041096,120]
[420429003,1776094990138,-168.21109,0.00041096,120]
[420429004,1776094990234,-151.0,0.00041096,120]
[420429005,1776094990337,-663.587074,0.00041096,120]
[420429006,1776094990434,-151.0,0.00041096,120]
[420429007,1776094990545,-388.607107,0.00041096,120]
[420429008,1776094990648,-151.0,0.00041096,120]
[420429009,1776094990734,-168.21109,0.00041096,120]
[420429010,1776094990840,-151.0,0.00041096,120]
[420429011,1776094990935,-663.587074,0.00041096,120]
[420429012,1776094991029,-151.0,0.00041096,120]
[420429013,1776094991127,-388.607107,0.00041096,120]
[420429014,1776094991230,-151.0,0.00041096,120]
[420429015,1776094991352,-2113.270627,0.00041096,120]
[420429016,1776094991442,-168.21109,0.00041096,120]
[420429017,1776094991533,-663.587074,0.00041096,120]
[420429018,1776094991617,-5760.767572,0.00041096,120]
[420429019,1776094991701,-1118.395573,0.00041096,120]
[420429020,1776094991789,-151.0,0.00041096,120]
[420429021,1776094991873,-151.0,0.00041096,120]
[420429022,1776094991957,-219.713648,0.00041096,120]
[420429023,1776094992034,-2113.270627,0.00041096,120]
[420429024,1776094992111,-663.587074,0.00041096,120]
[420429025,1776094992193,-5760.767572,0.00041096,120]
[420429026,1776094992270,-151.0,0.00041096,120]
[420429027,1776094992375,-1118.395573,0.00041096,120]
[420429028,1776094992465,-190.521104,0.00041096,120]
[420429029,1776094992550,-2113.270627,0.00041096,120]
[420429030,1776094992675,-5760.767572,0.00041096,120]
[420429031,1776094992813,-187.212529,0.00041096,120]
[420429032,1776094992924,-151.0,0.00041096,120]
[420429033,1776094993010,-1118.395573,0.00041096,120]
[420429034,1776094993097,-190.521104,0.00041096,120]
[420429035,1776094993177,-176.572342,0.00041096,60]
[420429036,1776094993261,-2113.270627,0.00041096,120]
[420429037,1776094993352,-5760.767572,0.00041096,120]
[420429038,1776094993442,-1118.395573,0.00041096,120]
[420429039,1776094993529,-151.0,0.00041096,120]
[420429040,1776094993617,-190.521104,0.00041096,120]
[420429041,1776094993706,-176.572342,0.00041096,60]
[420429042,1776094993803,-220.136348,0.00041096,120]
[420429043,1776094993901,-190.521104,0.00041096,120]
[420429044,1776094993982,-151.0,0.00041096,120]
[420429045,1776094994067,-176.572342,0.00041096,60]
[420429046,1776094994150,-220.136348,0.00041096,120]
[420429047,1776094994233,-492.476707,0.00041096,120]
[420429048,1776094994313,-176.572342,0.00041096,60]
[420429049,1776094994398,-220.136348,0.00041096,120]
[420429050,1776094994477,-151.0,0.00041096,120]
[420429051,1776094994561,-492.476707,0.00041096,120]
[420429052,1776094994647,-220.136348,0.00041096,120]
[420429053,1776094994731,-151.0,0.00041096,120]
[420429054,1776094994822,-492.476707,0.00041096,120]
[420429055,1776094994912,-492.476707,0.00041096,120]
[420429056,1776094994996,-151.0,0.00041096,120]
[420429057,1776094995088,-598.068711,0.00041096,120]
[420429058,1776094995181,-151.0,0.00041096,120]
[420429059,1776094995270,-151.0,0.00041096,120]
[420429060,1776094995350,-598.068711,0.00041096,120]
[420429061,1776094995427,-151.0,0.00041096,120]
[420429062,1776094995504,-598.068711,0.00041096,120]
[420429063,1776094995585,-151.0,0.00041096,120]
[420429064,1776094995714,-598.068711,0.00041096,120]
[420429065,1776094995840,-721.105024,0.00041096,120]
[420429066,1776094995927,-151.0,0.00041096,120]
[420429067,1776094996007,-617.087941,0.00041096,120]
[420429068,1776094996106,-721.105024,0.00041096,120]
[420429069,1776094996214,-151.0,0.00041096,120]
[420429070,1776094996313,-154.915779,0.00041096,120]
[420429071,1776094996397,-617.087941,0.00041096,120]
[420429072,1776094996489,-721.105024,0.00041096,120]
[420429073,1776094996579,-151.0,0.00041096,120]
[420429074,1776094996695,-151.0,0.00041096,120]
[420429075,1776094996820,-151.0,0.00041096,120]
[420429076,1776094996907,-617.087941,0.00041096,120]
[420429077,1776094996995,-721.105024,0.00041096,120]
[420429078,1776094997077,-151.0,0.00041096,120]
[420429079,1776094997164,-316.28488,0.00041096,120]
[420429080,1776094997255,-151.0,0.00041096,120]
[420429081,1776094997358,-617.087941,0.00041096,120]
[420429082,1776094997467,-151.0,0.00041096,120]
[420429083,1776094997560,-155.462851,0.00041096,120]
[420429084,1776094997647,-316.28488,0.00041096,120]
[420429085,1776094997728,-151.0,0.00041096,120]
[420429086,1776094997812,-779.527835,0.00041096,120]
[420429087,1776094997895,-151.0,0.00041096,120]
[420429088,1776094997980,-260.910023,0.00041096,120]
[420429089,1776094998125,-316.28488,0.00041096,120]
[420429090,1776094998415,-779.527835,0.00041096,120]
[420429091,1776094998514,-706.817188,0.00041096,120]
[420429092,1776094998594,-151.0,0.00041096,120]
[420429093,1776094998685,-1067.469626,0.00041096,120]
[420429094,1776094998773,-260.910023,0.00041096,120]
[420429095,1776094998856,-316.28488,0.00041096,120]
[420429096,1776094998935,-779.527835,0.00041096,120]
[420429097,1776094999026,-706.817188,0.00041096,120]
[420429098,1776094999119,-151.0,0.00041096,120]
[420429099,1776094999217,-3483.698738,0.00041096,120]